[Event "Live Chess"]
[Site "Chess.com"]
[Date "2023.05.21"]
[Round "-"]
[White "apl_trainer"]
[Black "KeithArkell"]
[Result "0-1"]
[WhiteElo "1768"]
[BlackElo "2495"]
[TimeControl "300"]
[EndTime "3:11:42 PDT"]
[Termination "KeithArkell won by resignation"]

1. d4 {[%clk 0:04:57]} 1... c5 {[%clk 0:04:58.7]} 2. d5 {[%clk 0:04:55.5]} 2...
e5 {[%clk 0:04:57.4]} 3. c4 {[%clk 0:04:53.9]} 3... d6 {[%clk 0:04:56.7]} 4. Nc3
{[%clk 0:04:52.8]} 4... Be7 {[%clk 0:04:56]} 5. Nf3 {[%clk 0:04:47.1]} 5... f5
{[%clk 0:04:54.7]} 6. e4 {[%clk 0:04:45.1]} 6... Nf6 {[%clk 0:04:50.5]} 7. Bd3
{[%clk 0:04:40.9]} 7... fxe4 {[%clk 0:04:48.6]} 8. Nxe4 {[%clk 0:04:39.1]} 8...
Nxe4 {[%clk 0:04:46.1]} 9. Bxe4 {[%clk 0:04:38.2]} 9... Nd7 {[%clk 0:04:45.3]}
10. Qc2 {[%clk 0:04:18.2]} 10... Nf6 {[%clk 0:04:19.3]} 11. Bf5 {[%clk
0:04:16.5]} 11... O-O {[%clk 0:04:16.7]} 12. Bxc8 {[%clk 0:04:12.4]} 12... Rxc8
{[%clk 0:04:12.6]} 13. Ng5 {[%clk 0:04:07.8]} 13... Qd7 {[%clk 0:04:05.7]} 14.
Ne6 {[%clk 0:04:03.2]} 14... Rf7 {[%clk 0:04:04.7]} 15. O-O {[%clk 0:03:57.7]}
15... b5 {[%clk 0:04:03.8]} 16. b3 {[%clk 0:03:54.2]} 16... h6 {[%clk
0:04:01.8]} 17. a4 {[%clk 0:03:51.2]} 17... bxc4 {[%clk 0:04:00.2]} 18. bxc4
{[%clk 0:03:49.6]} 18... Nh7 {[%clk 0:03:58.9]} 19. Rb1 {[%clk 0:03:34.9]} 19...
Nf8 {[%clk 0:03:57.1]} 20. Qe4 {[%clk 0:03:19.5]} 20... Nxe6 {[%clk 0:03:55.1]}
21. dxe6 {[%clk 0:03:18.4]} 21... Qxe6 {[%clk 0:03:54.4]} 22. Rb7 {[%clk
0:03:17.2]} 22... Bf6 {[%clk 0:03:51.6]} 23. Be3 {[%clk 0:03:05.9]} 23... Rcf8
{[%clk 0:03:48]} 24. Rfb1 {[%clk 0:03:03.2]} 24... Bg5 {[%clk 0:03:38.1]} 25.
Bxg5 {[%clk 0:02:17.3]} 25... hxg5 {[%clk 0:03:36.5]} 26. Rxf7 {[%clk
0:02:15.7]} 26... Qxf7 {[%clk 0:03:35]} 27. f3 {[%clk 0:02:10]} 27... Qf5 {[%clk
0:03:27.4]} 28. Qd5+ {[%clk 0:01:53.4]} 28... Kh7 {[%clk 0:03:26]} 29. Rb7
{[%clk 0:01:50.8]} 29... Rf6 {[%clk 0:03:13.9]} 30. Qe4 {[%clk 0:01:44.9]} 30...
Qxe4 {[%clk 0:03:11.7]} 31. fxe4 {[%clk 0:01:43.8]} 31... Rf4 {[%clk 0:03:10.9]}
32. Rxa7 {[%clk 0:01:27.8]} 32... Rxe4 {[%clk 0:03:09.7]} 33. Rd7 {[%clk
0:01:16.8]} 33... Rxc4 {[%clk 0:03:07.9]} 34. a5 {[%clk 0:01:16]} 34... Ra4
{[%clk 0:03:01.6]} 35. Rxd6 {[%clk 0:01:14.3]} 35... Rxa5 {[%clk 0:02:59.8]} 36.
Rd5 {[%clk 0:01:13.2]} 36... e4 {[%clk 0:02:56]} 37. Kf2 {[%clk 0:01:11.2]}
37... Ra2+ {[%clk 0:02:53]} 38. Kg3 {[%clk 0:01:08]} 38... Rc2 {[%clk 0:02:51]}
39. Rxg5 {[%clk 0:01:06.2]} 39... c4 {[%clk 0:02:48.4]} 40. Re5 {[%clk
0:01:01.3]} 40... Re2 {[%clk 0:02:34]} 41. Rc5 {[%clk 0:00:56.9]} 41... Rc2
{[%clk 0:02:33]} 42. Re5 {[%clk 0:00:55.5]} 42... c3 {[%clk 0:02:31.6]} 43. Rxe4
{[%clk 0:00:52.1]} 43... Rd2 {[%clk 0:02:30.8]} 44. Rc4 {[%clk 0:00:50.2]} 44...
c2 {[%clk 0:02:30]} 45. Kf3 {[%clk 0:00:42]} 45... Kg6 {[%clk 0:02:29.1]} 46.
Rc6+ {[%clk 0:00:40.4]} 46... Kf5 {[%clk 0:02:27.8]} 47. Rc5+ {[%clk 0:00:39.3]}
47... Ke6 {[%clk 0:02:26.9]} 48. Rc6+ {[%clk 0:00:38]} 48... Kd5 {[%clk
0:02:25.7]} 49. Rc8 {[%clk 0:00:35.8]} 49... Kd4 {[%clk 0:02:23.9]} 50. h4
{[%clk 0:00:32.7]} 50... Rd3+ {[%clk 0:02:23]} 51. Kf2 {[%clk 0:00:30.7]} 51...
Rc3 {[%clk 0:02:22.2]} 52. Rd8+ {[%clk 0:00:28.8]} 52... Ke5 {[%clk 0:02:15.1]}
0-1

[Event "Live Chess"]
[Site "Chess.com"]
[Date "2023.05.21"]
[Round "-"]
[White "JanMur7"]
[Black "SupremeTactician"]
[Result "0-1"]
[WhiteElo "1962"]
[BlackElo "2231"]
[TimeControl "300"]
[EndTime "3:11:47 PDT"]
[Termination "SupremeTactician won by checkmate"]

1. e4 {[%clk 0:04:55.3]} 1... e5 {[%clk 0:04:59.2]} 2. Nf3 {[%clk 0:04:54.4]}
2... Nc6 {[%clk 0:04:58.2]} 3. Nc3 {[%clk 0:04:53.4]} 3... Bc5 {[%clk
0:04:57.2]} 4. Nxe5 {[%clk 0:04:52.2]} 4... Nxe5 {[%clk 0:04:56.3]} 5. d4 {[%clk
0:04:50.7]} 5... Bd6 {[%clk 0:04:56.1]} 6. dxe5 {[%clk 0:04:50.3]} 6... Bxe5
{[%clk 0:04:56]} 7. Bc4 {[%clk 0:04:47.9]} 7... c6 {[%clk 0:04:53.2]} 8. f4
{[%clk 0:04:41.4]} 8... Bxc3+ {[%clk 0:04:52.3]} 9. bxc3 {[%clk 0:04:40.1]} 9...
Ne7 {[%clk 0:04:48.8]} 10. Qd6 {[%clk 0:04:34.4]} 10... O-O {[%clk 0:04:43.6]}
11. Ba3 {[%clk 0:04:32.5]} 11... Re8 {[%clk 0:04:42.4]} 12. O-O {[%clk
0:04:27.4]} 12... Ng6 {[%clk 0:04:39.9]} 13. f5 {[%clk 0:04:22]} 13... Ne5
{[%clk 0:04:39.1]} 14. Be2 {[%clk 0:04:19.3]} 14... b6 {[%clk 0:04:25.7]} 15. f6
{[%clk 0:04:12.8]} 15... Re6 {[%clk 0:04:15.1]} 16. Qd4 {[%clk 0:03:59.4]} 16...
gxf6 {[%clk 0:04:11.6]} 17. Bc4 {[%clk 0:03:45.2]} 17... c5 {[%clk 0:03:55.3]}
18. Qe3 {[%clk 0:03:36.9]} 18... Nxc4 {[%clk 0:03:53.2]} 19. Qg3+ {[%clk
0:03:32.3]} 19... Kf8 {[%clk 0:03:52.2]} 20. e5 {[%clk 0:03:28.7]} 20... Nxa3
{[%clk 0:03:48]} 21. exf6 {[%clk 0:03:24.2]} 21... Rxf6 {[%clk 0:03:46.2]} 22.
Rxf6 {[%clk 0:03:22.8]} 22... Qxf6 {[%clk 0:03:46.1]} 23. Rf1 {[%clk 0:03:21.6]}
23... Qg6 {[%clk 0:03:39.8]} 24. Qf3 {[%clk 0:03:13.8]} 24... Rb8 {[%clk
0:03:27.8]} 25. Qf4 {[%clk 0:03:12.1]} 25... d6 {[%clk 0:03:26.8]} 26. Qa4
{[%clk 0:03:07.6]} 26... Bb7 {[%clk 0:03:15.2]} 27. Rf2 {[%clk 0:03:06.8]} 27...
Nb1 {[%clk 0:03:08.2]} 28. Qxa7 {[%clk 0:03:00.5]} 28... Re8 {[%clk 0:02:59.9]}
29. Qxb7 {[%clk 0:02:56.6]} 29... Nxc3 {[%clk 0:02:57.7]} 30. Rf1 {[%clk
0:02:56.5]} 30... Ne2+ {[%clk 0:02:55.9]} 31. Kh1 {[%clk 0:02:53]} 31... Qh5
{[%clk 0:02:55.1]} 32. Rb1 {[%clk 0:02:23.1]} 32... Qh4 {[%clk 0:02:42.4]} 33.
Qxb6 {[%clk 0:02:15.7]} 33... Ng3+ {[%clk 0:02:40]} 34. Kg1 {[%clk 0:02:09.7]}
34... Qd4# {[%clk 0:02:39.9]} 0-1

[Event "Live Chess"]
[Site "Chess.com"]
[Date "2023.05.21"]
[Round "-"]
[White "Vitalii18a"]
[Black "LiamClery2020"]
[Result "0-1"]
[WhiteElo "1115"]
[BlackElo "1993"]
[TimeControl "300"]
[EndTime "3:11:48 PDT"]
[Termination "LiamClery2020 won by resignation"]

1. e4 {[%clk 0:04:57.6]} 1... Nf6 {[%clk 0:04:58.6]} 2. Bd3 {[%clk 0:04:51.8]}
2... e5 {[%clk 0:04:57.8]} 3. c3 {[%clk 0:04:50.6]} 3... d5 {[%clk 0:04:55.7]}
4. exd5 {[%clk 0:04:41.3]} 4... Qxd5 {[%clk 0:04:55.6]} 5. Bc2 {[%clk
0:04:34.6]} 5... Qxg2 {[%clk 0:04:52.1]} 6. Qf3 {[%clk 0:04:27]} 6... Qxf3
{[%clk 0:04:46]} 7. Nxf3 {[%clk 0:04:25.3]} 7... Nc6 {[%clk 0:04:45.3]} 8. d4
{[%clk 0:04:18.6]} 8... exd4 {[%clk 0:04:43.8]} 9. cxd4 {[%clk 0:04:17.1]} 9...
Bg4 {[%clk 0:04:42]} 10. Ne5 {[%clk 0:04:13]} 10... Nxd4 {[%clk 0:04:37.3]} 11.
Be3 {[%clk 0:04:05.6]} 11... Nxc2+ {[%clk 0:04:34.8]} 0-1

[Event "Live Chess"]
[Site "Chess.com"]
[Date "2023.05.21"]
[Round "-"]
[White "LL220284LL"]
[Black "matt1979"]
[Result "1-0"]
[WhiteElo "2316"]
[BlackElo "1539"]
[TimeControl "300"]
[EndTime "3:11:51 PDT"]
[Termination "LL220284LL won by resignation"]

1. e3 {[%clk 0:04:57.7]} 1... f5 {[%clk 0:04:57.6]} 2. b3 {[%clk 0:04:57.6]}
2... e6 {[%clk 0:04:56.3]} 3. Bb2 {[%clk 0:04:32.3]} 3... Nf6 {[%clk 0:04:54.7]}
4. c4 {[%clk 0:04:30.9]} 4... Be7 {[%clk 0:04:52.5]} 5. Nc3 {[%clk 0:04:28.8]}
5... O-O {[%clk 0:04:51.1]} 6. Nf3 {[%clk 0:04:26.7]} 6... d6 {[%clk 0:04:48.1]}
7. Be2 {[%clk 0:04:25.2]} 7... Nc6 {[%clk 0:04:44.9]} 8. d4 {[%clk 0:04:24.2]}
8... e5 {[%clk 0:04:38]} 9. dxe5 {[%clk 0:04:24.1]} 9... dxe5 {[%clk 0:04:36.5]}
10. O-O {[%clk 0:04:22.6]} 10... Be6 {[%clk 0:04:31.3]} 11. a3 {[%clk
0:04:19.1]} 11... h6 {[%clk 0:04:25.8]} 12. Qc2 {[%clk 0:04:17.9]} 12... e4
{[%clk 0:04:19.3]} 13. Nd4 {[%clk 0:04:15.4]} 13... Nxd4 {[%clk 0:04:17.6]} 14.
exd4 {[%clk 0:04:15.3]} 14... Qe8 {[%clk 0:04:12.2]} 15. Rad1 {[%clk 0:04:11.9]}
15... c6 {[%clk 0:04:09.4]} 16. d5 {[%clk 0:04:10.3]} 16... cxd5 {[%clk
0:04:08.4]} 17. cxd5 {[%clk 0:04:10.2]} 17... Bf7 {[%clk 0:04:04.6]} 18. d6
{[%clk 0:04:08.1]} 18... Bd8 {[%clk 0:04:00.5]} 19. Nb5 {[%clk 0:04:00.8]} 19...
a6 {[%clk 0:03:57.1]} 20. Nc7 {[%clk 0:03:59.7]} 20... Bxc7 {[%clk 0:03:55.9]}
21. dxc7 {[%clk 0:03:54]} 21... Rc8 {[%clk 0:03:54]} 22. Be5 {[%clk 0:03:52.8]}
22... Nd7 {[%clk 0:03:47.2]} 23. Bf4 {[%clk 0:03:48.4]} 23... g5 {[%clk
0:03:42.7]} 24. Bd6 {[%clk 0:03:47.3]} 24... Kh7 {[%clk 0:03:26.8]} 25. Bxf8
{[%clk 0:03:44.3]} 25... Qxf8 {[%clk 0:03:25.6]} 26. Rxd7 {[%clk 0:03:42.9]} 1-0

[Event "Live Chess"]
[Site "Chess.com"]
[Date "2023.05.21"]
[Round "-"]
[White "CeladonFish"]
[Black "VovaOvchar1990"]
[Result "1-0"]
[WhiteElo "1087"]
[BlackElo "1215"]
[TimeControl "300"]
[EndTime "3:11:54 PDT"]
[Termination "CeladonFish won by checkmate"]

1. d4 {[%clk 0:04:58.1]} 1... d5 {[%clk 0:04:59.2]} 2. c4 {[%clk 0:04:56.6]}
2... dxc4 {[%clk 0:04:58.1]} 3. Nc3 {[%clk 0:04:55.7]} 3... e6 {[%clk
0:04:56.5]} 4. Bf4 {[%clk 0:04:55.2]} 4... Bd6 {[%clk 0:04:55.4]} 5. Bxd6 {[%clk
0:04:51.4]} 5... cxd6 {[%clk 0:04:54.8]} 6. Nf3 {[%clk 0:04:50.5]} 6... d5
{[%clk 0:04:53.9]} 7. Qa4+ {[%clk 0:04:48.5]} 7... Bd7 {[%clk 0:04:50.8]} 8. Qb4
{[%clk 0:04:46]} 8... b6 {[%clk 0:04:48.6]} 9. Nb5 {[%clk 0:04:33.4]} 9... a5
{[%clk 0:04:42.5]} 10. Nd6+ {[%clk 0:04:28]} 10... Ke7 {[%clk 0:04:21]} 11. Nf5+
{[%clk 0:04:23.5]} 11... Kf6 {[%clk 0:04:13.7]} 12. Qd6 {[%clk 0:03:51.1]} 12...
Kxf5 {[%clk 0:04:05.7]} 13. Qe5+ {[%clk 0:03:43.9]} 13... Kg6 {[%clk 0:03:58.4]}
14. h4 {[%clk 0:03:34.8]} 14... f5 {[%clk 0:03:55.4]} 15. h5+ {[%clk 0:03:29.5]}
15... Kf7 {[%clk 0:03:53]} 16. Ng5+ {[%clk 0:03:28.4]} 16... Kf8 {[%clk
0:03:39.8]} 17. Qd6+ {[%clk 0:03:08.8]} 17... Ne7 {[%clk 0:03:28.7]} 18. Nxe6+
{[%clk 0:03:05]} 18... Bxe6 {[%clk 0:02:57.3]} 19. Qxd8+ {[%clk 0:03:03.1]}
19... Kf7 {[%clk 0:02:53.3]} 20. Qxh8 {[%clk 0:03:01.5]} 20... Bc8 {[%clk
0:02:32.5]} 21. h6 {[%clk 0:02:58.7]} 21... g6 {[%clk 0:02:24]} 22. Qg7+ {[%clk
0:02:54.7]} 22... Ke6 {[%clk 0:02:21.7]} 23. Qe5+ {[%clk 0:02:42.7]} 23... Kd7
{[%clk 0:02:18.4]} 24. e3 {[%clk 0:02:36.1]} 24... Bb7 {[%clk 0:02:16.5]} 25. b3
{[%clk 0:02:31.4]} 25... Nbc6 {[%clk 0:02:13.7]} 26. Qg7 {[%clk 0:02:21.8]}
26... cxb3 {[%clk 0:02:05.7]} 27. axb3 {[%clk 0:02:18.4]} 27... Nb4 {[%clk
0:02:01.1]} 28. Bb5+ {[%clk 0:02:16]} 28... Bc6 {[%clk 0:01:31.9]} 29. Bxc6+
{[%clk 0:02:11.1]} 29... Nxc6 {[%clk 0:01:29.6]} 30. O-O {[%clk 0:02:03.8]}
30... Nd8 {[%clk 0:01:04.4]} 31. Rac1 {[%clk 0:01:54.1]} 31... Ne6 {[%clk
0:01:00.6]} 32. Qe5 {[%clk 0:01:47.6]} 32... Ng5 {[%clk 0:00:47.9]} 33. Rc7+
{[%clk 0:01:41.5]} 33... Ke8 {[%clk 0:00:39.9]} 34. Qxe7# {[%clk 0:01:36.2]} 1-0

[Event "Live Chess"]
[Site "Chess.com"]
[Date "2023.05.21"]
[Round "-"]
[White "Trendle"]
[Black "Davidagye"]
[Result "1-0"]
[WhiteElo "2658"]
[BlackElo "1676"]
[TimeControl "300"]
[EndTime "3:12:53 PDT"]
[Termination "Trendle won by resignation"]

1. Nf3 {[%clk 0:04:57.2]} 1... e6 {[%clk 0:04:54.7]} 2. c4 {[%clk 0:04:55.9]}
2... d5 {[%clk 0:04:53]} 3. g3 {[%clk 0:04:53.7]} 3... Nf6 {[%clk 0:04:51.2]} 4.
Bg2 {[%clk 0:04:53]} 4... c6 {[%clk 0:04:45.6]} 5. O-O {[%clk 0:04:50.8]} 5...
Nbd7 {[%clk 0:04:44.2]} 6. b3 {[%clk 0:04:45]} 6... Be7 {[%clk 0:04:39.3]} 7.
Bb2 {[%clk 0:04:43.1]} 7... O-O {[%clk 0:04:36.5]} 8. d3 {[%clk 0:04:40.1]} 8...
b6 {[%clk 0:04:25.7]} 9. Nbd2 {[%clk 0:04:34.7]} 9... Bb7 {[%clk 0:04:23.6]} 10.
e4 {[%clk 0:04:32.6]} 10... dxe4 {[%clk 0:04:17.2]} 11. dxe4 {[%clk 0:04:29.5]}
11... c5 {[%clk 0:04:16.4]} 12. e5 {[%clk 0:04:27]} 12... Ne8 {[%clk 0:04:14.9]}
13. Qc2 {[%clk 0:04:21.7]} 13... Qc7 {[%clk 0:04:09.6]} 14. Ne4 {[%clk
0:04:19.5]} 14... h6 {[%clk 0:04:03.4]} 15. Rad1 {[%clk 0:04:17.9]} 15... Rd8
{[%clk 0:03:54.5]} 16. Rd2 {[%clk 0:04:10.6]} 16... Nb8 {[%clk 0:03:40.7]} 17.
Rfd1 {[%clk 0:04:07.6]} 17... Nc6 {[%clk 0:03:37.9]} 18. Nd6 {[%clk 0:03:44.8]}
18... Ba8 {[%clk 0:03:26.4]} 19. Qc3 {[%clk 0:03:37.2]} 19... Nxe5 {[%clk
0:03:12.6]} 20. Nxe8 {[%clk 0:03:28.4]} 20... Rdxe8 {[%clk 0:02:58.4]} 21. Nxe5
{[%clk 0:03:24]} 21... Bf6 {[%clk 0:02:56.6]} 1-0

[Event "Live Chess"]
[Site "Chess.com"]
[Date "2023.05.21"]
[Round "-"]
[White "wadsy27"]
[Black "hturner40"]
[Result "1-0"]
[WhiteElo "2556"]
[BlackElo "1814"]
[TimeControl "300"]
[EndTime "3:13:00 PDT"]
[Termination "wadsy27 won on time"]

1. e4 {[%clk 0:04:58.2]} 1... Nc6 {[%clk 0:04:57.7]} 2. Nf3 {[%clk 0:04:54.3]}
2... e5 {[%clk 0:04:54.7]} 3. d4 {[%clk 0:04:51.9]} 3... exd4 {[%clk 0:04:41.6]}
4. Nxd4 {[%clk 0:04:51.8]} 4... Nf6 {[%clk 0:04:39.2]} 5. Nxc6 {[%clk
0:04:47.7]} 5... bxc6 {[%clk 0:04:37.2]} 6. e5 {[%clk 0:04:45.8]} 6... Qe7
{[%clk 0:04:36]} 7. Qe2 {[%clk 0:04:43.5]} 7... Nd5 {[%clk 0:04:34.6]} 8. h4
{[%clk 0:04:41.9]} 8... a5 {[%clk 0:04:25.8]} 9. c4 {[%clk 0:04:34.5]} 9... Ba6
{[%clk 0:04:20.1]} 10. b3 {[%clk 0:04:23.9]} 10... f6 {[%clk 0:04:12.5]} 11.
exf6 {[%clk 0:04:19.5]} 11... Nxf6 {[%clk 0:04:02.7]} 12. Bb2 {[%clk 0:04:15.7]}
12... O-O-O {[%clk 0:03:38.3]} 13. Qxe7 {[%clk 0:04:08.9]} 13... Bxe7 {[%clk
0:03:36.4]} 14. Nc3 {[%clk 0:04:00.8]} 14... Ng4 {[%clk 0:03:19.9]} 15. Be2
{[%clk 0:03:56.5]} 15... h5 {[%clk 0:03:09.8]} 16. Ne4 {[%clk 0:03:31]} 16... d5
{[%clk 0:02:54.1]} 17. Ng3 {[%clk 0:03:12]} 17... Bc5 {[%clk 0:02:15.7]} 18. O-O
{[%clk 0:02:36.2]} 18... dxc4 {[%clk 0:01:56]} 19. Nxh5 {[%clk 0:02:29.1]} 19...
Nxf2 {[%clk 0:01:36.1]} 20. Rxf2 {[%clk 0:02:25.7]} 20... Bxf2+ {[%clk
0:01:34.6]} 21. Kxf2 {[%clk 0:02:23.8]} 21... Rd2 {[%clk 0:01:30.5]} 22. Bc3
{[%clk 0:02:22.2]} 22... Rc2 {[%clk 0:01:25.6]} 23. Nxg7 {[%clk 0:01:57.9]}
23... cxb3 {[%clk 0:01:15.4]} 24. axb3 {[%clk 0:01:56.3]} 24... Bxe2 {[%clk
0:00:13.7]} 25. Rxa5 {[%clk 0:01:53.1]} 25... Bb5+ {[%clk 0:00:08.2]} 26. Kg1
{[%clk 0:01:49.8]} 26... Rxc3 {[%clk 0:00:06.4]} 27. Ra8+ {[%clk 0:01:48.5]}
27... Kb7 {[%clk 0:00:00.9]} 28. Rxh8 {[%clk 0:01:48.4]} 1-0

[Event "Live Chess"]
[Site "Chess.com"]
[Date "2023.05.21"]
[Round "-"]
[White "CarlsenCab"]
[Black "seasidecastle27"]
[Result "0-1"]
[WhiteElo "519"]
[BlackElo "1904"]
[TimeControl "300"]
[EndTime "3:13:11 PDT"]
[Termination "seasidecastle27 won by checkmate"]

1. d4 {[%clk 0:04:54.5]} 1... d5 {[%clk 0:04:57.9]} 2. Nf3 {[%clk 0:04:53.7]}
2... e6 {[%clk 0:04:56.1]} 3. Bf4 {[%clk 0:04:52.3]} 3... Nf6 {[%clk 0:04:54.1]}
4. e3 {[%clk 0:04:51.7]} 4... Bd6 {[%clk 0:04:52.5]} 5. c3 {[%clk 0:04:51]} 5...
Bxf4 {[%clk 0:04:50]} 6. exf4 {[%clk 0:04:50.2]} 6... Qd6 {[%clk 0:04:47.6]} 7.
Qc1 {[%clk 0:04:47]} 7... c5 {[%clk 0:04:45.5]} 8. Bb5+ {[%clk 0:04:44.2]} 8...
Bd7 {[%clk 0:04:43.3]} 9. Bxd7+ {[%clk 0:04:42.5]} 9... Nbxd7 {[%clk 0:04:41.9]}
10. dxc5 {[%clk 0:04:41.9]} 10... Qxc5 {[%clk 0:04:36.8]} 11. O-O {[%clk
0:04:40.6]} 11... O-O {[%clk 0:04:34.8]} 12. Ng5 {[%clk 0:04:33.6]} 12... h6
{[%clk 0:04:30.8]} 13. b4 {[%clk 0:04:28.4]} 13... Qc7 {[%clk 0:04:19.7]} 14.
Nh3 {[%clk 0:04:21.4]} 14... Ne4 {[%clk 0:04:16.2]} 15. Qc2 {[%clk 0:04:09.8]}
15... Rac8 {[%clk 0:04:13.5]} 16. Rc1 {[%clk 0:03:49.7]} 16... Ndf6 {[%clk
0:04:08.4]} 17. f3 {[%clk 0:03:48.6]} 17... Qb6+ {[%clk 0:03:54.1]} 18. Kf1
{[%clk 0:03:43.8]} 18... Nd6 {[%clk 0:03:48.8]} 19. a3 {[%clk 0:03:28.9]} 19...
Nf5 {[%clk 0:03:47.2]} 20. Nd2 {[%clk 0:03:17.6]} 20... Ne3+ {[%clk 0:03:45]}
21. Ke2 {[%clk 0:03:13.4]} 21... Nxc2 {[%clk 0:03:42.9]} 22. Rxc2 {[%clk
0:03:12.7]} 22... d4 {[%clk 0:03:25.2]} 23. c4 {[%clk 0:03:06.3]} 23... d3+
{[%clk 0:03:21.3]} 24. Kxd3 {[%clk 0:03:03.4]} 24... Rfd8+ {[%clk 0:03:19.5]}
25. Kc3 {[%clk 0:03:01.7]} 25... Qd4+ {[%clk 0:03:16.6]} 26. Kb3 {[%clk
0:02:58.2]} 26... Qxa1 {[%clk 0:03:14.2]} 27. Ra2 {[%clk 0:02:54.9]} 27... Qd1+
{[%clk 0:03:10]} 28. Kc3 {[%clk 0:02:51]} 28... Nd5+ {[%clk 0:03:01.8]} 29. Kd4
{[%clk 0:02:45.9]} 29... Nxb4+ {[%clk 0:02:57]} 30. Ke5 {[%clk 0:02:41.5]} 30...
Nxa2 {[%clk 0:02:55]} 31. Ne4 {[%clk 0:02:37.3]} 31... Rd5+ {[%clk 0:02:48.9]}
32. cxd5 {[%clk 0:02:35.2]} 32... Qxd5# {[%clk 0:02:46.6]} 0-1

[Event "Live Chess"]
[Site "Chess.com"]
[Date "2023.05.21"]
[Round "-"]
[White "Brooms1989"]
[Black "JohanKjeldahl"]
[Result "0-1"]
[WhiteElo "1124"]
[BlackElo "1894"]
[TimeControl "300"]
[EndTime "3:13:12 PDT"]
[Termination "JohanKjeldahl won by resignation"]

1. e4 {[%clk 0:04:57.5]} 1... c5 {[%clk 0:04:58.7]} 2. Nc3 {[%clk 0:04:52.6]}
2... e6 {[%clk 0:04:57]} 3. f4 {[%clk 0:04:50]} 3... Nc6 {[%clk 0:04:54.8]} 4.
Nf3 {[%clk 0:04:49]} 4... a6 {[%clk 0:04:53.6]} 5. d3 {[%clk 0:04:43.1]} 5... b5
{[%clk 0:04:51]} 6. d4 {[%clk 0:04:32.5]} 6... cxd4 {[%clk 0:04:49.1]} 7. Nxd4
{[%clk 0:04:31.6]} 7... Bb7 {[%clk 0:04:47.7]} 8. Nxc6 {[%clk 0:04:29.8]} 8...
Bxc6 {[%clk 0:04:44.7]} 9. Bd3 {[%clk 0:04:28.9]} 9... Bc5 {[%clk 0:04:39]} 10.
a3 {[%clk 0:04:25.7]} 10... Qh4+ {[%clk 0:04:35.8]} 11. g3 {[%clk 0:04:23.4]}
11... Qh3 {[%clk 0:04:34.8]} 12. Qe2 {[%clk 0:04:16.9]} 12... Nf6 {[%clk
0:04:30.2]} 13. b4 {[%clk 0:04:11.2]} 13... Bb6 {[%clk 0:04:27.9]} 14. Be3
{[%clk 0:04:04.4]} 14... Bxe3 {[%clk 0:04:11.4]} 15. Qxe3 {[%clk 0:04:04.3]}
15... O-O {[%clk 0:03:56.9]} 16. Bf1 {[%clk 0:03:51.5]} 16... Qh5 {[%clk
0:03:53.4]} 17. Be2 {[%clk 0:03:48.2]} 17... Qg6 {[%clk 0:03:48.8]} 18. O-O-O
{[%clk 0:03:39.1]} 18... Nxe4 {[%clk 0:03:42.6]} 19. Nxe4 {[%clk 0:03:35]} 19...
Bxe4 {[%clk 0:03:41.4]} 20. Rxd7 {[%clk 0:03:30.3]} 20... Bxh1 {[%clk
0:03:37.9]} 21. Bd3 {[%clk 0:03:25.1]} 21... Qf6 {[%clk 0:03:32.6]} 22. Qe1
{[%clk 0:03:08]} 22... Bc6 {[%clk 0:03:26.3]} 23. Rd6 {[%clk 0:03:02.9]} 23...
Bd5 {[%clk 0:03:24.5]} 24. Qe2 {[%clk 0:02:50.7]} 24... Rfc8 {[%clk 0:03:20.5]}
25. Qh5 {[%clk 0:02:44.3]} 25... g6 {[%clk 0:03:18.2]} 26. Qh3 {[%clk
0:02:41.1]} 26... Qc3 {[%clk 0:03:13.6]} 27. Qg2 {[%clk 0:02:20.5]} 0-1

[Event "Live Chess"]
[Site "Chess.com"]
[Date "2023.05.21"]
[Round "-"]
[White "JoshMcK"]
[Black "TheSmoulderingMaster"]
[Result "1-0"]
[WhiteElo "1520"]
[BlackElo "1697"]
[TimeControl "300"]
[EndTime "3:13:20 PDT"]
[Termination "JoshMcK won by resignation"]

1. e4 {[%clk 0:04:58.9]} 1... c5 {[%clk 0:04:58.8]} 2. c3 {[%clk 0:04:57]} 2...
d5 {[%clk 0:04:57.4]} 3. exd5 {[%clk 0:04:55.8]} 3... Qxd5 {[%clk 0:04:56.6]} 4.
d4 {[%clk 0:04:54.3]} 4... Nc6 {[%clk 0:04:53.8]} 5. Nf3 {[%clk 0:04:51.4]} 5...
Bg4 {[%clk 0:04:52.1]} 6. dxc5 {[%clk 0:04:49.1]} 6... Qxc5 {[%clk 0:04:51]} 7.
Na3 {[%clk 0:04:46.7]} 7... e6 {[%clk 0:04:49.2]} 8. Nb5 {[%clk 0:04:44.5]} 8...
Rc8 {[%clk 0:04:45.4]} 9. Be3 {[%clk 0:04:38.6]} 9... Qh5 {[%clk 0:04:41.1]} 10.
Nxa7 {[%clk 0:04:30.6]} 10... Rd8 {[%clk 0:04:35.5]} 11. Qe2 {[%clk 0:04:25.7]}
11... Nge7 {[%clk 0:04:22.8]} 12. h3 {[%clk 0:04:06]} 12... g6 {[%clk
0:04:20.5]} 13. Bb6 {[%clk 0:03:56.7]} 13... Rd5 {[%clk 0:04:14.6]} 14. Nxc6
{[%clk 0:03:30.3]} 14... Nxc6 {[%clk 0:04:11.7]} 15. Be3 {[%clk 0:03:24.6]}
15... Bh6 {[%clk 0:04:08.1]} 16. Rd1 {[%clk 0:03:08.1]} 16... Re5 {[%clk
0:03:59.9]} 17. Qd3 {[%clk 0:02:51.7]} 17... O-O {[%clk 0:03:23.4]} 18. Be2
{[%clk 0:02:37.6]} 18... Rd5 {[%clk 0:03:14.9]} 19. Qc2 {[%clk 0:02:32.3]} 19...
Bxe3 {[%clk 0:03:07]} 20. Rxd5 {[%clk 0:02:26.7]} 20... Bxf2+ {[%clk 0:02:56.4]}
21. Kxf2 {[%clk 0:02:23.5]} 21... exd5 {[%clk 0:02:50.5]} 22. Qd1 {[%clk
0:02:15.8]} 22... Be6 {[%clk 0:02:45.2]} 23. g4 {[%clk 0:02:05.8]} 23... Qh6
{[%clk 0:02:39.6]} 24. g5 {[%clk 0:02:04.7]} 24... Qh5 {[%clk 0:02:32.9]} 25. h4
{[%clk 0:02:03.7]} 25... Qg4 {[%clk 0:02:31.3]} 26. Ne5 {[%clk 0:01:58]} 26...
Qf4+ {[%clk 0:02:28.3]} 27. Nf3 {[%clk 0:01:56.6]} 27... f6 {[%clk 0:02:24.6]}
28. gxf6 {[%clk 0:01:45.9]} 28... Rxf6 {[%clk 0:02:22.5]} 29. h5 {[%clk
0:01:45.2]} 29... Ne5 {[%clk 0:02:19.1]} 30. hxg6 {[%clk 0:01:40.9]} 30... Ng4+
{[%clk 0:02:18.1]} 31. Ke1 {[%clk 0:01:38.4]} 31... hxg6 {[%clk 0:02:12.6]} 32.
Qd4 {[%clk 0:01:26.3]} 32... Qg3+ {[%clk 0:02:05.9]} 33. Kd1 {[%clk 0:01:22.7]}
33... Nf2+ {[%clk 0:02:04.2]} 34. Kc2 {[%clk 0:01:17.4]} 34... Bf5+ {[%clk
0:02:01.1]} 35. Kb3 {[%clk 0:01:13.5]} 35... Nxh1 {[%clk 0:01:39.4]} 36. Qxf6
{[%clk 0:01:08.8]} 36... Qh3 {[%clk 0:01:01.5]} 37. Qd8+ {[%clk 0:00:55.8]}
37... Kg7 {[%clk 0:00:56.1]} 38. Qe7+ {[%clk 0:00:54.2]} 38... Kh6 {[%clk
0:00:51.6]} 39. Qf8+ {[%clk 0:00:42.1]} 39... Kh5 {[%clk 0:00:48.3]} 40. Ng1+
{[%clk 0:00:36.4]} 40... Qg4 {[%clk 0:00:45.9]} 41. Bxg4+ {[%clk 0:00:33.3]}
41... Bxg4 {[%clk 0:00:45.1]} 42. Qh8+ {[%clk 0:00:30.6]} 1-0